[Event "Titled Tuesday Blitz August 16 Early 2022"]
[White "Manukian, Artak"]
[Black "Sovetbekova, Nurai"]
[WhiteFideId "13301373"]
[BlackFideId "13801910"]
[WhiteElo "2196"]
[BlackElo "1646"]
[Result "0-1"]
[Round "03"]
[TimeControl "180+2"]
[Date "2022.08.18"]
[WhiteClock "0:00:00"]
[BlackClock "0:00:00"]

1. e4 {[%clk 0:00:00]}  c5 {[%clk 0:00:00]} 2. Nf3 {[%clk 0:00:00]}  d6 {[%clk 0:00:00]} 3. Bb5+ {[%clk 0:00:00]}  Nd7 {[%clk 0:00:00]} 4. O-O {[%clk 0:00:00]}  a6 {[%clk 0:00:00]} 5. Bd3 {[%clk 0:00:00]}  Ngf6 {[%clk 0:00:00]} 6. Re1 {[%clk 0:00:00]}  e6 {[%clk 0:00:00]} 7. c3 {[%clk 0:00:00]}  Be7 {[%clk 0:00:00]} 8. a4 {[%clk 0:00:00]}  O-O {[%clk 0:00:00]} 9. Bc2 {[%clk 0:00:00]}  c4 {[%clk 0:00:00]} 10. b4 {[%clk 0:00:00]}  b6 {[%clk 0:00:00]} 11. Na3 {[%clk 0:00:00]}  Qc7 {[%clk 0:00:00]} 12. Qe2 {[%clk 0:00:00]}  d5 {[%clk 0:00:00]} 13. exd5 {[%clk 0:00:00]}  exd5 {[%clk 0:00:00]} 14. Qxe7 {[%clk 0:00:00]}  Re8 {[%clk 0:00:00]} 15. Qxe8+ {[%clk 0:00:00]}  Nxe8 {[%clk 0:00:00]} 16. Rxe8+ {[%clk 0:00:00]}  Nf8 {[%clk 0:00:00]} 17. Bxh7+ {[%clk 0:00:00]}  Kxh7 {[%clk 0:00:00]} 18. Rxf8 {[%clk 0:00:00]}  Qe7 {[%clk 0:00:00]} 19. Rxc8 {[%clk 0:00:00]}  Rxc8 {[%clk 0:00:00]} 20. Nc2 {[%clk 0:00:00]}  Qe2 {[%clk 0:00:00]} 21. Ne3 {[%clk 0:00:00]}  Re8 {[%clk 0:00:00]} 22. Ba3 {[%clk 0:00:00]}  Qd3 {[%clk 0:00:00]} 23. b5 {[%clk 0:00:00]}  axb5 {[%clk 0:00:00]} 24. axb5 {[%clk 0:00:00]}  Ra8 {[%clk 0:00:00]} 25. h4 {[%clk 0:00:00]}  f6 {[%clk 0:00:00]} 26. Kh2 {[%clk 0:00:00]}  Qe4 {[%clk 0:00:00]} 27. Kg3 {[%clk 0:00:00]}  Qe6 {[%clk 0:00:00]} 28. Bb2 {[%clk 0:00:00]}  Rxa1 {[%clk 0:00:00]} 29. Bxa1 {[%clk 0:00:00]}  Qd6+ {[%clk 0:00:00]} 30. Kg4 {[%clk 0:00:00]}  Qd7+ {[%clk 0:00:00]} 31. Kf4 {[%clk 0:00:00]}  Qxb5 {[%clk 0:00:00]} 32. Nd4 {[%clk 0:00:00]}  Qb1 {[%clk 0:00:00]} 33. Nec2 {[%clk 0:00:00]}  Qf1 {[%clk 0:00:00]} 34. Kf3 {[%clk 0:00:00]}  Qd3+ {[%clk 0:00:00]} 35. Kg4 {[%clk 0:00:00]}  Qxd2 {[%clk 0:00:00]} 36. Bb2 {[%clk 0:00:00]}  Qxf2 {[%clk 0:00:00]} 37. g3 {[%clk 0:00:00]}  g6 {[%clk 0:00:00]} 38. Ba3 {[%clk 0:00:00]}  Qf1 {[%clk 0:00:00]} 39. Bd6 {[%clk 0:00:00]}  f5+ {[%clk 0:00:00]} 40. Kg5 {[%clk 0:00:00]}  Qc1+ {[%clk 0:00:00]} 41. Kf6 {[%clk 0:00:00]}  Qg1 {[%clk 0:00:00]} 42. Bf4 {[%clk 0:00:00]}  Qf1 {[%clk 0:00:00]} 43. h5 {[%clk 0:00:00]}  gxh5 {[%clk 0:00:00]} 44. Kxf5 {[%clk 0:00:00]}  Qd3+ {[%clk 0:00:00]} 45. Kg5 {[%clk 0:00:00]}  Qxc3 {[%clk 0:00:00]} 46. Kxh5 {[%clk 0:00:00]}  b5 {[%clk 0:00:00]} 47. Bd6 {[%clk 0:00:00]}  Qd3 {[%clk 0:00:00]} 48. Bb4 {[%clk 0:00:00]}  Qd1+ {[%clk 0:00:00]} 49. Kh4 {[%clk 0:00:00]}  Qh1+ {[%clk 0:00:00]} 50. Kg4 {[%clk 0:00:00]}  Kg6 {[%clk 0:00:00]} 51. Kf4 {[%clk 0:00:00]}  Qh6+ {[%clk 0:00:00]} 52. Kf3 {[%clk 0:00:00]}  Qh5+ {[%clk 0:00:00]} 53. g4 {[%clk 0:00:00]}  Qh3+ {[%clk 0:00:00]} 54. Kf4 {[%clk 0:00:00]}  Qd3 {[%clk 0:00:00]} 55. Ke5 {[%clk 0:00:00]}  Qg3+ {[%clk 0:00:00]} 56. Kxd5 {[%clk 0:00:00]}  Qxg4 {[%clk 0:00:00]} 57. Kc5 {[%clk 0:00:00]}  Qg5+ {[%clk 0:00:00]} 58. Kb6 {[%clk 0:00:00]}  Qe5 {[%clk 0:00:00]} 59. Nxb5 {[%clk 0:00:00]}  Kf5 {[%clk 0:00:00]} 60. Ncd4+ {[%clk 0:00:00]}  Ke4 {[%clk 0:00:00]} 61. Bd6 {[%clk 0:00:00]}  Qf6 {[%clk 0:00:00]} 62. Kc5 {[%clk 0:00:00]}  Kd3 {[%clk 0:00:00]} 63. Kb4 {[%clk 0:00:00]}  c3 {[%clk 0:00:00]} 0-1


[Site "https://www.chess.com"]

[Event "Titled Tuesday Blitz August 16 Early 2022"]
[White "Manukyan, Sargis V."]
[Black "Nunez V, Gustavo Eduardo"]
[WhiteFideId "13303465"]
[BlackFideId "4403690"]
[WhiteElo "2221"]
[BlackElo "2228"]
[Result "1-0"]
[Round "03"]
[TimeControl "180+2"]
[Date "2022.08.18"]
[WhiteClock "0:00:00"]
[BlackClock "0:00:00"]

1. c4 {[%clk 0:00:00]}  Nf6 {[%clk 0:00:00]} 2. Nc3 {[%clk 0:00:00]}  g6 {[%clk 0:00:00]} 3. e4 {[%clk 0:00:00]}  Bg7 {[%clk 0:00:00]} 4. d4 {[%clk 0:00:00]}  d6 {[%clk 0:00:00]} 5. Be2 {[%clk 0:00:00]}  O-O {[%clk 0:00:00]} 6. Nf3 {[%clk 0:00:00]}  e5 {[%clk 0:00:00]} 7. O-O {[%clk 0:00:00]}  Nbd7 {[%clk 0:00:00]} 8. Be3 {[%clk 0:00:00]}  Re8 {[%clk 0:00:00]} 9. d5 {[%clk 0:00:00]}  Nc5 {[%clk 0:00:00]} 10. Bxc5 {[%clk 0:00:00]}  dxc5 {[%clk 0:00:00]} 11. Ne1 {[%clk 0:00:00]}  b6 {[%clk 0:00:00]} 12. Nd3 {[%clk 0:00:00]}  Bf8 {[%clk 0:00:00]} 13. a4 {[%clk 0:00:00]}  a5 {[%clk 0:00:00]} 14. h3 {[%clk 0:00:00]}  Bd6 {[%clk 0:00:00]} 15. Ra3 {[%clk 0:00:00]}  Bd7 {[%clk 0:00:00]} 16. Bg4 {[%clk 0:00:00]}  Nxg4 {[%clk 0:00:00]} 17. hxg4 {[%clk 0:00:00]}  Qg5 {[%clk 0:00:00]} 18. f3 {[%clk 0:00:00]}  h5 {[%clk 0:00:00]} 19. gxh5 {[%clk 0:00:00]}  Bh3 {[%clk 0:00:00]} 20. Rf2 {[%clk 0:00:00]}  gxh5 {[%clk 0:00:00]} 21. Qd2 {[%clk 0:00:00]}  Qg6 {[%clk 0:00:00]} 22. Nb5 {[%clk 0:00:00]}  f5 {[%clk 0:00:00]} 23. Nxd6 {[%clk 0:00:00]}  cxd6 {[%clk 0:00:00]} 24. Rb3 {[%clk 0:00:00]}  Rab8 {[%clk 0:00:00]} 25. Kh2 {[%clk 0:00:00]}  fxe4 {[%clk 0:00:00]} 26. gxh3 {[%clk 0:00:00]}  Kh7 {[%clk 0:00:00]} 27. fxe4 {[%clk 0:00:00]}  Rg8 {[%clk 0:00:00]} 28. Rg2 {[%clk 0:00:00]}  Qxe4 {[%clk 0:00:00]} 29. Ne1 {[%clk 0:00:00]}  Rxg2+ {[%clk 0:00:00]} 30. Nxg2 {[%clk 0:00:00]}  Qxc4 {[%clk 0:00:00]} 31. Rf3 {[%clk 0:00:00]}  Rg8 {[%clk 0:00:00]} 32. Rf7+ {[%clk 0:00:00]}  Kg6 {[%clk 0:00:00]} 33. Qf2 {[%clk 0:00:00]}  Kh6 {[%clk 0:00:00]} 34. Qf6+ {[%clk 0:00:00]}  Rg6 {[%clk 0:00:00]} 35. Qh8+ {[%clk 0:00:00]}  Kg5 {[%clk 0:00:00]} 36. Qd8+ {[%clk 0:00:00]}  Kh6 {[%clk 0:00:00]} 37. Qf8+ {[%clk 0:00:00]}  Kg5 {[%clk 0:00:00]} 38. Rf5# {[%clk 0:00:00]} 1-0


[Site "https://www.chess.com"]

[Event "Titled Tuesday Blitz August 16 Early 2022"]
[White "Martic, Ivan"]
[Black "Kaasen, Tor Fredrik"]
[WhiteFideId "929301"]
[BlackFideId "1516647"]
[WhiteElo "2355"]
[BlackElo "2335"]
[Result "0-1"]
[Round "03"]
[TimeControl "180+2"]
[Date "2022.08.18"]
[WhiteClock "0:00:00"]
[BlackClock "0:00:00"]

1. e4 {[%clk 0:00:00]}  e5 {[%clk 0:00:00]} 2. Nf3 {[%clk 0:00:00]}  Nc6 {[%clk 0:00:00]} 3. Bb5 {[%clk 0:00:00]}  a6 {[%clk 0:00:00]} 4. Ba4 {[%clk 0:00:00]}  d6 {[%clk 0:00:00]} 5. O-O {[%clk 0:00:00]}  Bd7 {[%clk 0:00:00]} 6. c3 {[%clk 0:00:00]}  g6 {[%clk 0:00:00]} 7. d4 {[%clk 0:00:00]}  Bg7 {[%clk 0:00:00]} 8. dxe5 {[%clk 0:00:00]}  Nxe5 {[%clk 0:00:00]} 9. Nxe5 {[%clk 0:00:00]}  dxe5 {[%clk 0:00:00]} 10. Bxd7+ {[%clk 0:00:00]}  Qxd7 {[%clk 0:00:00]} 11. Qxd7+ {[%clk 0:00:00]}  Kxd7 {[%clk 0:00:00]} 12. f4 {[%clk 0:00:00]}  exf4 {[%clk 0:00:00]} 13. Bxf4 {[%clk 0:00:00]}  c6 {[%clk 0:00:00]} 14. Nd2 {[%clk 0:00:00]}  Ne7 {[%clk 0:00:00]} 15. Nc4 {[%clk 0:00:00]}  Ke6 {[%clk 0:00:00]} 16. Rad1 {[%clk 0:00:00]}  Rad8 {[%clk 0:00:00]} 17. Na5 {[%clk 0:00:00]}  b6 {[%clk 0:00:00]} 18. Nc4 {[%clk 0:00:00]}  Nc8 {[%clk 0:00:00]} 19. Bc7 {[%clk 0:00:00]}  Rxd1 {[%clk 0:00:00]} 20. Rxd1 {[%clk 0:00:00]}  Bf8 {[%clk 0:00:00]} 21. Kf1 {[%clk 0:00:00]}  b5 {[%clk 0:00:00]} 22. Na5 {[%clk 0:00:00]}  Bd6 {[%clk 0:00:00]} 23. Bxd6 {[%clk 0:00:00]}  Nxd6 {[%clk 0:00:00]} 24. e5 {[%clk 0:00:00]}  Kxe5 {[%clk 0:00:00]} 25. Nxc6+ {[%clk 0:00:00]}  Ke6 {[%clk 0:00:00]} 26. Na5 {[%clk 0:00:00]}  Rc8 {[%clk 0:00:00]} 27. Rd4 {[%clk 0:00:00]}  f5 {[%clk 0:00:00]} 28. Ke2 {[%clk 0:00:00]}  g5 {[%clk 0:00:00]} 29. g3 {[%clk 0:00:00]}  Ke5 {[%clk 0:00:00]} 30. a4 {[%clk 0:00:00]}  h5 {[%clk 0:00:00]} 31. axb5 {[%clk 0:00:00]}  axb5 {[%clk 0:00:00]} 32. Rb4 {[%clk 0:00:00]}  Kf6 {[%clk 0:00:00]} 33. Nb3 {[%clk 0:00:00]}  Re8+ {[%clk 0:00:00]} 34. Kd3 {[%clk 0:00:00]}  Re1 {[%clk 0:00:00]} 35. Nd4 {[%clk 0:00:00]}  Rd1+ {[%clk 0:00:00]} 36. Kc2 {[%clk 0:00:00]}  Rh1 {[%clk 0:00:00]} 37. h4 {[%clk 0:00:00]}  gxh4 {[%clk 0:00:00]} 38. gxh4 {[%clk 0:00:00]}  Rxh4 {[%clk 0:00:00]} 39. Kb3 {[%clk 0:00:00]}  Re4 {[%clk 0:00:00]} 40. Nf3 {[%clk 0:00:00]}  Kg6 {[%clk 0:00:00]} 41. Rd4 {[%clk 0:00:00]}  Rxd4 {[%clk 0:00:00]} 42. cxd4 {[%clk 0:00:00]}  f4 {[%clk 0:00:00]} 43. Kb4 {[%clk 0:00:00]}  Kf5 {[%clk 0:00:00]} 44. Kc5 {[%clk 0:00:00]}  Ne4+ {[%clk 0:00:00]} 45. Kc6 {[%clk 0:00:00]}  Kg4 {[%clk 0:00:00]} 46. Ne5+ {[%clk 0:00:00]}  Kg3 {[%clk 0:00:00]} 47. d5 {[%clk 0:00:00]}  f3 {[%clk 0:00:00]} 48. Nd3 {[%clk 0:00:00]}  f2 {[%clk 0:00:00]} 49. Nxf2 {[%clk 0:00:00]}  Kxf2 {[%clk 0:00:00]} 50. d6 {[%clk 0:00:00]}  Nxd6 {[%clk 0:00:00]} 51. Kxd6 {[%clk 0:00:00]}  h4 {[%clk 0:00:00]} 52. Kc5 {[%clk 0:00:00]}  h3 {[%clk 0:00:00]} 53. Kxb5 {[%clk 0:00:00]}  h2 {[%clk 0:00:00]} 54. b4 {[%clk 0:00:00]}  h1=Q {[%clk 0:00:00]} 55. Ka5 {[%clk 0:00:00]}  Qa8+ {[%clk 0:00:00]} 56. Kb6 {[%clk 0:00:00]}  Qb8+ {[%clk 0:00:00]} 0-1


[Site "https://www.chess.com"]

[Event "Titled Tuesday Blitz August 16 Early 2022"]
[White "Martin, Lewis"]
[Black "Navarrete Mendez, Gonzalo Alberto"]
[WhiteFideId "410551"]
[BlackFideId "5106850"]
[WhiteElo "2151"]
[BlackElo "2185"]
[Result "1-0"]
[Round "03"]
[TimeControl "180+2"]
[Date "2022.08.18"]
[WhiteClock "0:00:00"]
[BlackClock "0:00:00"]

1. e4 {[%clk 0:00:00]}  e5 {[%clk 0:00:00]} 2. Nf3 {[%clk 0:00:00]}  Nc6 {[%clk 0:00:00]} 3. Bb5 {[%clk 0:00:00]}  a6 {[%clk 0:00:00]} 4. Ba4 {[%clk 0:00:00]}  d6 {[%clk 0:00:00]} 5. O-O {[%clk 0:00:00]}  Bd7 {[%clk 0:00:00]} 6. Re1 {[%clk 0:00:00]}  Nge7 {[%clk 0:00:00]} 7. c3 {[%clk 0:00:00]}  Ng6 {[%clk 0:00:00]} 8. d4 {[%clk 0:00:00]}  Be7 {[%clk 0:00:00]} 9. Nbd2 {[%clk 0:00:00]}  O-O {[%clk 0:00:00]} 10. Nf1 {[%clk 0:00:00]}  Bg4 {[%clk 0:00:00]} 11. h3 {[%clk 0:00:00]}  Bxf3 {[%clk 0:00:00]} 12. Qxf3 {[%clk 0:00:00]}  b5 {[%clk 0:00:00]} 13. d5 {[%clk 0:00:00]}  bxa4 {[%clk 0:00:00]} 14. dxc6 {[%clk 0:00:00]}  Qe8 {[%clk 0:00:00]} 15. Ng3 {[%clk 0:00:00]}  Qxc6 {[%clk 0:00:00]} 16. Be3 {[%clk 0:00:00]}  h6 {[%clk 0:00:00]} 17. Nf5 {[%clk 0:00:00]}  Qd7 {[%clk 0:00:00]} 18. Qg4 {[%clk 0:00:00]}  Qe6 {[%clk 0:00:00]} 19. h4 {[%clk 0:00:00]}  Qf6 {[%clk 0:00:00]} 20. h5 {[%clk 0:00:00]}  Nh4 {[%clk 0:00:00]} 21. Nxe7+ {[%clk 0:00:00]}  Qxe7 {[%clk 0:00:00]} 22. Bxh6 {[%clk 0:00:00]}  f5 {[%clk 0:00:00]} 23. Qg5 {[%clk 0:00:00]}  Rf7 {[%clk 0:00:00]} 24. Qxe7 {[%clk 0:00:00]}  Rxe7 {[%clk 0:00:00]} 25. Bg5 {[%clk 0:00:00]}  Nxg2 {[%clk 0:00:00]} 26. Bxe7 {[%clk 0:00:00]}  Nxe1 {[%clk 0:00:00]} 27. Rxe1 {[%clk 0:00:00]}  Kf7 {[%clk 0:00:00]} 28. Bg5 {[%clk 0:00:00]}  Rb8 {[%clk 0:00:00]} 29. Bc1 {[%clk 0:00:00]}  a3 {[%clk 0:00:00]} 30. b3 {[%clk 0:00:00]}  fxe4 {[%clk 0:00:00]} 31. Rxe4 {[%clk 0:00:00]}  Rxb3 {[%clk 0:00:00]} 32. axb3 {[%clk 0:00:00]} 1-0


[Site "https://www.chess.com"]

[Event "Titled Tuesday Blitz August 16 Early 2022"]
[White "Martinez Reyes, Pedro Ramon"]
[Black "Guz, Ari"]
[WhiteFideId "3901807"]
[BlackFideId "2825759"]
[WhiteElo "2408"]
[BlackElo "2308"]
[Result "0-1"]
[Round "03"]
[TimeControl "180+2"]
[Date "2022.08.18"]
[WhiteClock "0:00:00"]
[BlackClock "0:00:00"]

1. d4 {[%clk 0:00:00]}  g6 {[%clk 0:00:00]} 2. Nf3 {[%clk 0:00:00]}  Bg7 {[%clk 0:00:00]} 3. c4 {[%clk 0:00:00]}  Nf6 {[%clk 0:00:00]} 4. Nc3 {[%clk 0:00:00]}  O-O {[%clk 0:00:00]} 5. e3 {[%clk 0:00:00]}  c5 {[%clk 0:00:00]} 6. Be2 {[%clk 0:00:00]}  cxd4 {[%clk 0:00:00]} 7. Nxd4 {[%clk 0:00:00]}  Nc6 {[%clk 0:00:00]} 8. O-O {[%clk 0:00:00]}  d5 {[%clk 0:00:00]} 9. Ndb5 {[%clk 0:00:00]}  dxc4 {[%clk 0:00:00]} 10. Bxc4 {[%clk 0:00:00]}  a6 {[%clk 0:00:00]} 11. Nd4 {[%clk 0:00:00]}  Nxd4 {[%clk 0:00:00]} 12. exd4 {[%clk 0:00:00]}  b5 {[%clk 0:00:00]} 13. Bb3 {[%clk 0:00:00]}  Bb7 {[%clk 0:00:00]} 14. Qe2 {[%clk 0:00:00]}  e6 {[%clk 0:00:00]} 15. Rd1 {[%clk 0:00:00]}  Nd5 {[%clk 0:00:00]} 16. Ne4 {[%clk 0:00:00]}  Nb6 {[%clk 0:00:00]} 17. Bg5 {[%clk 0:00:00]}  Qe8 {[%clk 0:00:00]} 18. Rac1 {[%clk 0:00:00]}  Bd5 {[%clk 0:00:00]} 19. Nf6+ {[%clk 0:00:00]}  Bxf6 {[%clk 0:00:00]} 20. Bxf6 {[%clk 0:00:00]}  Bxb3 {[%clk 0:00:00]} 21. axb3 {[%clk 0:00:00]}  Nd5 {[%clk 0:00:00]} 22. Be5 {[%clk 0:00:00]}  Rc8 {[%clk 0:00:00]} 23. Bd6 {[%clk 0:00:00]}  Qd7 {[%clk 0:00:00]} 24. Bxf8 {[%clk 0:00:00]}  Rxf8 {[%clk 0:00:00]} 25. Qe5 {[%clk 0:00:00]}  Qe7 {[%clk 0:00:00]} 26. g3 {[%clk 0:00:00]}  Qb4 {[%clk 0:00:00]} 27. Rd3 {[%clk 0:00:00]}  h5 {[%clk 0:00:00]} 28. Kg2 {[%clk 0:00:00]}  a5 {[%clk 0:00:00]} 29. Rc2 {[%clk 0:00:00]}  a4 {[%clk 0:00:00]} 30. bxa4 {[%clk 0:00:00]}  Qxa4 {[%clk 0:00:00]} 31. Re2 {[%clk 0:00:00]}  Qc4 {[%clk 0:00:00]} 32. h3 {[%clk 0:00:00]}  Qxd3 {[%clk 0:00:00]} 33. g4 {[%clk 0:00:00]}  Qxe2 {[%clk 0:00:00]} 0-1


[Site "https://www.chess.com"]

[Event "Titled Tuesday Blitz August 16 Early 2022"]
[White "Martinez, Shawn"]
[Black "Aldokhin, Ivan"]
[WhiteFideId "2039770"]
[BlackFideId "24115720"]
[WhiteElo "2174"]
[BlackElo "2246"]
[Result "0-1"]
[Round "03"]
[TimeControl "180+2"]
[Date "2022.08.18"]
[WhiteClock "0:00:00"]
[BlackClock "0:00:00"]

1. e4 {[%clk 0:00:00]}  c5 {[%clk 0:00:00]} 2. Nc3 {[%clk 0:00:00]}  e6 {[%clk 0:00:00]} 3. g3 {[%clk 0:00:00]}  Nc6 {[%clk 0:00:00]} 4. Bg2 {[%clk 0:00:00]}  g6 {[%clk 0:00:00]} 5. Nge2 {[%clk 0:00:00]}  Bg7 {[%clk 0:00:00]} 6. O-O {[%clk 0:00:00]}  Nge7 {[%clk 0:00:00]} 7. d3 {[%clk 0:00:00]}  O-O {[%clk 0:00:00]} 8. Be3 {[%clk 0:00:00]}  Nd4 {[%clk 0:00:00]} 9. Qd2 {[%clk 0:00:00]}  Nec6 {[%clk 0:00:00]} 10. Rab1 {[%clk 0:00:00]}  b5 {[%clk 0:00:00]} 11. f4 {[%clk 0:00:00]}  b4 {[%clk 0:00:00]} 12. Nd1 {[%clk 0:00:00]}  d5 {[%clk 0:00:00]} 13. c3 {[%clk 0:00:00]}  Nxe2+ {[%clk 0:00:00]} 14. Qxe2 {[%clk 0:00:00]}  bxc3 {[%clk 0:00:00]} 15. Bxc5 {[%clk 0:00:00]}  Bd4+ {[%clk 0:00:00]} 16. Bxd4 {[%clk 0:00:00]}  Nxd4 {[%clk 0:00:00]} 17. Qe3 {[%clk 0:00:00]}  c2 {[%clk 0:00:00]} 18. Nf2 {[%clk 0:00:00]}  cxb1=Q {[%clk 0:00:00]} 19. Rxb1 {[%clk 0:00:00]}  Qb6 {[%clk 0:00:00]} 20. f5 {[%clk 0:00:00]}  exf5 {[%clk 0:00:00]} 21. exd5 {[%clk 0:00:00]}  Bb7 {[%clk 0:00:00]} 22. Qh6 {[%clk 0:00:00]}  Rfe8 {[%clk 0:00:00]} 23. Nh3 {[%clk 0:00:00]}  f4 {[%clk 0:00:00]} 24. Kh1 {[%clk 0:00:00]}  f3 {[%clk 0:00:00]} 25. Bf1 {[%clk 0:00:00]}  Bxd5 {[%clk 0:00:00]} 26. Ng5 {[%clk 0:00:00]}  f2+ {[%clk 0:00:00]} 27. Bg2 {[%clk 0:00:00]}  Re1+ {[%clk 0:00:00]} 28. Rxe1 {[%clk 0:00:00]}  fxe1=Q# {[%clk 0:00:00]} 0-1


[Site "https://www.chess.com"]

[Event "Titled Tuesday Blitz August 16 Early 2022"]
[White "Matyukov, Petr"]
[Black "McBryde, Lamel"]
[WhiteFideId "4103688"]
[BlackFideId "2058596"]
[WhiteElo "2278"]
[BlackElo "2136"]
[Result "0-1"]
[Round "03"]
[TimeControl "180+2"]
[Date "2022.08.18"]
[WhiteClock "0:00:00"]
[BlackClock "0:00:00"]

1. d4 {[%clk 0:00:00]}  Nf6 {[%clk 0:00:00]} 2. c4 {[%clk 0:00:00]}  g6 {[%clk 0:00:00]} 3. Nf3 {[%clk 0:00:00]}  Bg7 {[%clk 0:00:00]} 4. e3 {[%clk 0:00:00]}  O-O {[%clk 0:00:00]} 5. Be2 {[%clk 0:00:00]}  d6 {[%clk 0:00:00]} 6. O-O {[%clk 0:00:00]}  Nc6 {[%clk 0:00:00]} 7. Nc3 {[%clk 0:00:00]}  Bg4 {[%clk 0:00:00]} 8. Rb1 {[%clk 0:00:00]}  Bf5 {[%clk 0:00:00]} 9. Bd3 {[%clk 0:00:00]}  Bxd3 {[%clk 0:00:00]} 10. Qxd3 {[%clk 0:00:00]}  Nd7 {[%clk 0:00:00]} 11. b4 {[%clk 0:00:00]}  e5 {[%clk 0:00:00]} 12. b5 {[%clk 0:00:00]}  Ne7 {[%clk 0:00:00]} 13. a4 {[%clk 0:00:00]}  f5 {[%clk 0:00:00]} 14. dxe5 {[%clk 0:00:00]}  Nxe5 {[%clk 0:00:00]} 15. Nxe5 {[%clk 0:00:00]}  dxe5 {[%clk 0:00:00]} 16. Qe2 {[%clk 0:00:00]}  Qe8 {[%clk 0:00:00]} 17. Ba3 {[%clk 0:00:00]}  Qf7 {[%clk 0:00:00]} 18. Rbd1 {[%clk 0:00:00]}  Rfd8 {[%clk 0:00:00]} 19. Bxe7 {[%clk 0:00:00]}  Qxe7 {[%clk 0:00:00]} 20. Nd5 {[%clk 0:00:00]}  Qc5 {[%clk 0:00:00]} 21. a5 {[%clk 0:00:00]}  c6 {[%clk 0:00:00]} 22. Nc7 {[%clk 0:00:00]}  Rxd1 {[%clk 0:00:00]} 23. Rxd1 {[%clk 0:00:00]}  Rc8 {[%clk 0:00:00]} 24. Ne6 {[%clk 0:00:00]}  Qe7 {[%clk 0:00:00]} 25. Nxg7 {[%clk 0:00:00]}  Kxg7 {[%clk 0:00:00]} 26. Qb2 {[%clk 0:00:00]}  Kf7 {[%clk 0:00:00]} 27. h3 {[%clk 0:00:00]}  Ke6 {[%clk 0:00:00]} 28. f4 {[%clk 0:00:00]}  Qc5 {[%clk 0:00:00]} 29. Qxe5+ {[%clk 0:00:00]}  Qxe5 {[%clk 0:00:00]} 30. fxe5 {[%clk 0:00:00]}  cxb5 {[%clk 0:00:00]} 31. cxb5 {[%clk 0:00:00]}  Rc5 {[%clk 0:00:00]} 32. b6 {[%clk 0:00:00]}  axb6 {[%clk 0:00:00]} 33. axb6 {[%clk 0:00:00]}  Rc6 {[%clk 0:00:00]} 34. Rb1 {[%clk 0:00:00]}  Kxe5 {[%clk 0:00:00]} 35. Kf2 {[%clk 0:00:00]}  Rc4 {[%clk 0:00:00]} 36. Rb5+ {[%clk 0:00:00]}  Ke4 {[%clk 0:00:00]} 37. Kg3 {[%clk 0:00:00]}  g5 {[%clk 0:00:00]} 38. h4 {[%clk 0:00:00]}  h6 {[%clk 0:00:00]} 39. hxg5 {[%clk 0:00:00]}  hxg5 {[%clk 0:00:00]} 40. Rb3 {[%clk 0:00:00]}  Rc2 {[%clk 0:00:00]} 41. Rb4+ {[%clk 0:00:00]}  Kxe3 {[%clk 0:00:00]} 42. Rb5 {[%clk 0:00:00]}  f4+ {[%clk 0:00:00]} 43. Kg4 {[%clk 0:00:00]}  Rxg2+ {[%clk 0:00:00]} 44. Kf5 {[%clk 0:00:00]}  f3 {[%clk 0:00:00]} 45. Rb3+ {[%clk 0:00:00]}  Ke2 {[%clk 0:00:00]} 46. Rb2+ {[%clk 0:00:00]}  Ke3 {[%clk 0:00:00]} 47. Rb3+ {[%clk 0:00:00]}  Kf2 {[%clk 0:00:00]} 48. Ke4 {[%clk 0:00:00]}  Rg3 {[%clk 0:00:00]} 49. Rb2+ {[%clk 0:00:00]}  Kg1 {[%clk 0:00:00]} 50. Rb1+ {[%clk 0:00:00]}  Kg2 {[%clk 0:00:00]} 51. Rb2+ {[%clk 0:00:00]}  f2 {[%clk 0:00:00]} 52. Rb1 {[%clk 0:00:00]}  f1=Q {[%clk 0:00:00]} 0-1


[Site "https://www.chess.com"]